Cogmind - Beta 16 @@@ ROGUE MODE // 2025.12.04 @ 17:55:35 Player: GLC Result: Destroyed by L-31 Rogue with Katana Performance ------------- Evolutions (2) 1000 Regions Visited (3) 600 Robots Destroyed (110) 550 Value Destroyed (2271) 2271 Prototype IDs (4) 80 Alien Tech Used (0) 0 Bonus (27) 27 TOTAL SCORE: 4528 Bonus ------- High Alert Combat Kills 27 Cogmind --------- Core Integrity 0/550 Matter 26/300 Energy 100/100 System Corruption 0% Temperature Cool (9) Movement Core (1350) Ox26 Location -8/Materials Parts ------- > --- POWER (1) -------- (None) > --- PROPULSION (4) --- (None) > --- UTILITY (4) ------ Huge Storage Unit Signal Interpreter > --- WEAPON (2) ------- (None) > --- INVENTORY (25) --- Ion Engine Ion Engine Improved Ion Engine Weight Redist. System Improved Signal Interpreter Seismic Detector Core Shielding Weapon Shielding Light Armor Plating Medium Armor Plating System Shield Shotgun Improved Assault Rifle Peak State ------------ > --- POWER ------------ Heavy Ion Engine > --- PROPULSION ------- Wheel Armored Wheel > --- UTILITY ---------- Huge Storage Unit Signal Interpreter Reaction Control System Hacking Suite > --- WEAPON ----------- Shotgun Improved Assault Rifle > --- INVENTORY -------- Ion Engine Ion Engine Improved Ion Engine Wheel Weight Redist. System Seismic Detector Core Shielding Core Shielding Weapon Shielding Light Armor Plating Medium Armor Plating Shotgun Improved Assault Rifle Grenade Launcher [Rating: 21] Favorites ----------- Power Ion Engine Engine Ion Engine Power Core Light Nuclear Core Propulsion Wheel Wheel Wheel Utility Signal Interpreter Device Seismic Detector Storage Huge Storage Unit Processor Signal Interpreter Hackware Hacking Suite Protection Core Shielding Weapon Shotgun Energy Gun Medium Laser Ballistic Gun Shotgun Launcher Grenade Launcher Build | -11 -10 -9 -8 ------- Run | Yrd Mat Mat Mat Slots Evolved 4 | . . 2 2 Power . | . . . . Propulsion 2 | . . . 2 Utility 2 | . . 2 . Weapon . | . . . . Parts Attached 54 | 10 13 24 7 Power 10 | 2 2 5 1 Engine 8 | 2 1 5 . Core 2 | . 1 . 1 Reactor . | . . . . Propulsion 17 | 4 4 6 3 Treads . | . . . . Leg . | . . . . Wheel 17 | 4 4 6 3 Hover . | . . . . Flight . | . . . . Utility 13 | 2 3 7 1 Device 4 | 1 . 2 1 Storage 4 | 1 1 2 . Processor 2 | . 1 1 . Hackware 1 | . . 1 . Protection 2 | . 1 1 . Artifact . | . . . . Weapon 14 | 2 4 6 2 Energy Gun 4 | 1 3 . . Energy Cannon . | . . . . Ballistic Gun 9 | 1 1 6 1 Ballistic Cannon . | . . . . Launcher 1 | . . . 1 Special Weapon . | . . . . Impact Weapon . | . . . . Slashing Weapon . | . . . . Piercing Weapon . | . . . . Special Melee Weapon . | . . . . Unidentified Prototypes 2 | . . 2 . Parts Lost 23 | . 5 7 11 Power 2 | . . 1 1 Propulsion 12 | . 3 5 4 Utility 5 | . 1 1 3 Weapon 4 | . 1 . 3 Highest Loss Streak 9 | . 4 2 9 To Critical Strikes . | . . . . Average Backups 10 | 4 8 12 12 Power 1 | . 1 2 2 Propulsion 1 | 2 3 . . Utility 5 | . 2 6 6 Weapon 2 | . 1 3 3 Tool/Special . | . . . . Unused Backups 16 | . 3 6 7 Power 2 | . 1 . 1 Propulsion 1 | . . 1 . Utility 10 | . 1 3 6 Weapon 3 | . 1 2 . Tool/Special . | . . . . Average Slot Usage (%) 93 | . 96 95 78 Engine 9 | . 9 10 4 Core 1 | . 4 . 4 Wheel 22 | . 26 20 20 Device 7 | . 8 8 . Storage 11 | . 14 11 9 Processor 7 | . . 11 9 Hackware 2 | . . 3 5 Protection 7 | . 3 8 8 Energy Gun 6 | . 20 1 . Ballistic Gun 15 | . 7 19 14 Peak Build Rating 21 | 7 10 21 21 Average Rating 12 | 5 7 14 15 On Entrance 8 | . 7 10 16 Avg Prop Armor Cover (%) . | . . . . Naked Turns . | . . . . Heaviest Build 95 | 15 20 95 95 Greatest Support 36 | 20 20 28 36 Greatest Overweight (x) 30 | 4 4 7 30 Average Overweight (x) 1 | 1 . 1 2 Largest Inventory Capacity 25 | 8 10 25 25 Average Capacity 14 | 7 8 16 25 Most Carried 15 | 8 10 15 15 Average Carried 10 | 4 8 12 12 Final Capacity 25 | 8 10 25 25 Final Carried 13 | 8 10 13 13 Class Distribution -------------------- 54% | Mutant 45% | Scavenger-Mutant Dominant Class ---------------- Scavenger-Mutant | -10/Materials Mutant | -9/Materials Mutant | -8/Materials Resources | -11 -10 -9 -8 ----------- Run | Yrd Mat Mat Mat Matter Collected 1920 | 360 289 1137 134 Remotely . | . . . . Salvage Created 3629 | 309 846 2068 406 Parts 219 | 33 40 122 24 Haulers Intercepted 7 | . 2 4 1 Recyclers Shooed 6 | 1 4 1 . Parts Field Recycled . | . . . . Retrieved Matter . | . . . . Parts Self-Destructed . | . . . . Prevented . | . . . . Parts Restored . | . . . . Kills | -11 -10 -9 -8 ------- Run | Yrd Mat Mat Mat Combat Hostiles Destroyed 60 | . 15 39 6 Guns 56 | . 15 39 2 AOE 4 | . . . 4 Classes Destroyed 12 | 3 6 2 1 Worker 5 | 2 1 1 1 Builder 8 | . 1 4 3 Tunneler 12 | 9 1 1 1 Hauler 7 | . 2 4 1 Recycler 9 | 1 3 4 1 Operator 3 | . 1 2 . Watcher 6 | . 3 3 . Swarmer 14 | . 6 8 . Grunt 33 | . 9 21 3 Brawler 2 | . . 2 . Sentry 10 | . . 8 2 Hunter 1 | . . . 1 Best Kill Streak 8 | 8 6 8 4 Combat Bots Only 5 | . 4 5 3 Max Kills in Single Turn 2 | 1 1 2 2 Gunslinging 1 | . . 1 . Exploded 2 | . . . 2 Melee . | . . . . Uniques/NPCs Destroyed . | . . . . Combat | -11 -10 -9 -8 -------- Run | Yrd Mat Mat Mat Hostile Shots Fired 359 | . 97 168 94 Missed 85 | . 23 38 24 Hits 274 | . 74 130 70 Melee 17 | . . 2 15 Projectile 257 | . 74 128 55 Critical Strikes 11 | . . 6 5 Actively Blocked 3 | . . 3 . Damage Taken 3714 | . 806 1588 1320 Core 1173 | . 239 382 552 Absorbed by Shields 53 | . . . 53 Redirected to Shielding 102 | . 2 46 54 Regen/Repaired (Parts) 218 | . . 218 . Core Remaining (%) 36 | 100 4 4 . Volleys Fired 280 | 20 96 127 37 Largest 2 | 2 2 2 2 Hottest 100 | 70 100 100 53 Shots Fired 555 | 40 190 254 71 Gun 542 | 40 190 254 58 Cannon . | . . . . Launcher 13 | . . . 13 Special . | . . . . Kinetic 359 | 20 51 230 58 Thermal 183 | 20 139 24 . Explosive 13 | . . . 13 Electromagnetic . | . . . . Robot Hit Streak 17 | 5 8 17 10 Robot Miss Streak 5 | 3 5 5 3 Penetration Max . | . . . . Secondary Targets 4 | . 1 3 . Max Gunslinging Chain 1 | . 1 1 . Shots Hit Robots 373 | 22 109 188 54 Core Hits 193 | 13 46 109 25 Critical Kills 3 | . . 2 1 Critical Parts Destroyed . | . . . . Critical Strikes 12 | 1 6 4 1 Burn 9 | 1 6 2 . Destroy 3 | . . 2 1 Melee Attacks . | . . . . Impact . | . . . . Slashing . | . . . . Piercing . | . . . . Sneak Attacks . | . . . . Combat Hostiles . | . . . . Follow-up Attacks . | . . . . Damage Inflicted 5904 | 296 1299 2990 1319 Guns 5205 | 296 1299 2990 620 Cannons . | . . . . Explosions 699 | . . . 699 Melee . | . . . . Ramming . | . . . . Kinetic 3859 | 121 341 2777 620 Thermal 1346 | 175 958 213 . Explosive 699 | . . . 699 Electromagnetic . | . . . . Impact . | . . . . Slashing . | . . . . Piercing . | . . . . Highest Corruption . | . . . . Average Corruption . | . . . . Corruption Purged . | . . . . Corruption Blocked . | . . . . Overload Shots . | . . . . Overflow Damage 8 | . . . 8 Projectiles . | . . . . Explosions 8 | . . . 8 Melee . | . . . . Knockbacks . | . . . . Impact . | . . . . Kinetic . | . . . . Secondary . | . . . . Self-Inflicted Damage 48 | . . . 48 Shots 2 | . . . 2 Rammed . | . . . . Targets Rammed . | . . . . Kicked . | . . . . Crushed . | . . . . Highest Temperature 459 | 27 459 145 18 Average Temperature 81 | 9 99 44 7 Received Heat Transfer 1302 | . 333 582 387 Effects 9 | . 9 . . Shutdowns 2 | . 2 . . Energy Bleed 4 | . 4 . . Interference 1 | . 1 . . Matter Decay 1 | . 1 . . Damage (major) 1 | . 1 . . Siege Activations . | . . . . Martial Activations . | . . . . Shielding Activations . | . . . . Robots Disrupted . | . . . . Combat Hostiles . | . . . . Robots Corrupted . | . . . . Combat Hostiles . | . . . . Parts Fried . | . . . . Impact Corruptions . | . . . . Robots Melted . | . . . . Combat Hostiles . | . . . . Parts Melted 4 | . 2 2 . Heat Transferred 4556 | 592 3187 777 . Parts Sabotaged . | . . . . Parts Stolen . | . . . . Parts Stripped . | . . . . Power Chain Reactions . | . . . . Alert | -11 -10 -9 -8 ------- Run | Yrd Mat Mat Mat Maximum Alert Level 2 | . . 2 1 Low Security (%) 82 | 100 100 73 72 Level 1 14 | . . 20 27 Level 2 3 | . . 5 . Level 3 . | . . . . Level 4 . | . . . . Level 5 . | . . . . High Security . | . . . . Max Security . | . . . . Peak Influence 459 | 10 144 459 248 Initial 139 | . . 55 139 Average 108 | 2 59 140 128 Influence Increases 1982 | 60 485 1116 321 Destroy 0b10 Robot/C 1200 | . 300 780 120 Destroy 0b10 Robot/NC 250 | 60 60 95 35 Destroy Leader 316 | . 80 194 42 Successful Hack 22 | . . 15 7 Disable Machine 15 | . 15 . . Destroy Structure 74 | . . 2 72 Lose Combat Pursuer 105 | . 30 30 45 Influence Decreases 1982 | 60 353 916 653 Entered New Map 270 | . . 77 193 Time Decay 1220 | 60 303 619 238 Lost Part 192 | . 50 70 72 Purge Threat 300 | . . 150 150 Squads Dispatched 11 | . 4 7 . Investigation 7 | . 3 4 . Extermination . | . . . . Reinforcement 4 | . 1 3 . Assault . | . . . . Garrison . | . . . . Intercept . | . . . . Searches Triggered . | . . . . Construction Impeded . | . . . . Haulers Reinforced . | . . . . Active Scanning Responses . | . . . . Cargo Convoy Interrupts . | . . . . Stealth | -11 -10 -9 -8 --------- Run | Yrd Mat Mat Mat Distress Signals 5 | . 2 2 1 Communications Jammed . | . . . . Distress Signals . | . . . . Times Spotted 106 | . 31 58 17 Peak Tracking Total 6 | . 4 5 6 Tactical Retreats 5 | . 2 2 1 Traps | -11 -10 -9 -8 ------- Run | Yrd Mat Mat Mat Traps Triggered 7 | . 3 3 1 Indirectly . | . . . . Trap Hack Attempts . | . . . . Triggered . | . . . . Disarmed . | . . . . Reprogrammed . | . . . . Reused . | . . . . Traps Extracted . | . . . . Installed . | . . . . Triggered . | . . . . Machines | -11 -10 -9 -8 ---------- Run | Yrd Mat Mat Mat Machines Disabled 1 | . 1 . . Max in Single Turn 1 | . 1 . . Garrison Access 1 | . . . 1 Machines Repaired . | . . . . Machines Dismantled . | . . . . Machines Sabotaged . | . . . . Overloaded Fab Kills . | . . . . Hacking | -11 -10 -9 -8 --------- Run | Yrd Mat Mat Mat Machines Accessed 15 | . 3 10 2 Terminals 8 | . 3 4 1 Fabricators . | . . . . Repair Stations 2 | . . 2 . Recycling Units 2 | . . 2 . Scanalyzers 2 | . . 2 . Garrison Access 1 | . . . 1 Total Hacks 65 | . 9 49 7 Successful 44 | . 4 35 5 Failed 20 | . 5 13 2 Catastrophic 1 | . 1 . . Database Lockouts 1 | . . 1 . Manual 6 | . 3 3 . Terminals 34 | . 9 22 3 Fabricators . | . . . . Repair Stations 13 | . . 13 . Recycling Units 4 | . . 4 . Scanalyzers 10 | . . 10 . Garrison Access 4 | . . . 4 Terminal Hacks 20 | . 4 13 3 Record 2 | . . 2 . Prototype ID Bank 1 | . . 1 . Scanalyzer Index 1 | . . 1 . Alert Level 7 | . 2 4 1 Unreport Threat 2 | . . 1 1 Locate Traps 4 | . 2 1 1 Surveillance Status 1 | . . 1 . Investigation Status 1 | . . 1 . Hauler Manifests 1 | . . 1 . Fabricator Hacks . | . . . . Repair Station Hacks 11 | . . 11 . Scan Component 7 | . . 7 . Repair 4 | . . 4 . Recycling Unit Hacks 3 | . . 3 . Report Inventory 2 | . . 2 . Retrieve Components 1 | . . 1 . Scanalyzer 8 | . . 8 . Insert Component 2 | . . 2 . Analyze 2 | . . 2 . Retrieve Study 4 | . . 4 . Garrison Access Hacks 2 | . . . 2 Unlock Access 1 | . . . 1 Seal Access 1 | . . . 1 Unauthorized Hacks . | . . . . Terminals . | . . . . Fabricators . | . . . . Repair Stations . | . . . . Recycling Units . | . . . . Scanalyzers . | . . . . Garrison Access . | . . . . Data Cores Recovered . | . . . . Used . | . . . . Hacking Detections 14 | . 3 9 2 Full Trace Events 7 | . 1 6 . Feedback Events . | . . . . Feedback Blocked . | . . . . Robot Schematics Acquired . | . . . . Robots Built . | . . . . Authchips . | . . . . Time . | . . . . Total Robot Build Rating . | . . . . Part Schematics Acquired 1 | . . 1 . Parts Built . | . . . . Authchips . | . . . . Time . | . . . . Total Part Build Rating . | . . . . Part Studies Acquired 4 | . . 4 . Parts Repaired 4 | . . 4 . Time 128 | . . 128 . Parts Recycled . | . . . . Recycled Matter . | . . . . Retrieved Matter . | . . . . Retrieved Components 10 | . . 10 . Parts Scanalyzed 2 | . . 2 . Part Schematics Acquired 1 | . . 1 . Parts Damaged . | . . . . Bothacking | -11 -10 -9 -8 ------------ Run | Yrd Mat Mat Mat Used RIF Installer . | . . . . Robots Hacked . | . . . . Non-combat . | . . . . Combat . | . . . . Robot Hacks Applied . | . . . . Relay Couplers Released . | . . . . Fabnet Peak Effective % . | . . . . Robots Rewired . | . . . . Allies Hacked . | . . . . Hacks Repelled . | . . . . Allies | -11 -10 -9 -8 -------- Run | Yrd Mat Mat Mat Total Allies . | . . . . Largest Group . | . . . . Highest-Rated Group . | . . . . Highest-Rated Ally . | . . . . Total Orders . | . . . . Ally Attacks . | . . . . Total Damage . | . . . . Kills . | . . . . Allies Corrupted . | . . . . Allies Melted . | . . . . Intel | -11 -10 -9 -8 ------- Run | Yrd Mat Mat Mat Active Infowar (turns) 2038 | 195 623 1220 . Seismic 1986 | 195 571 1220 . T.N.C. 52 | . 52 . . Robot Analysis Total . | . . . . Derelict Logs Recovered . | . . . . Drone Launches . | . . . . Drone Recoveries . | . . . . Exploration | -11 -10 -9 -8 ------------- Run | Yrd Mat Mat Mat Turns Passed 3955 | 294 985 2152 524 Spaces Moved 2643 | 171 807 1371 294 Core 66 | 62 2 . 2 Treads . | . . . . Legs . | . . . . Wheels 2577 | 109 805 1371 292 Hover . | . . . . Flight . | . . . . Fastest Speed 50 | 50 80 80 116 Average Speed 103 | 119 80 107 135 Slowest Speed 1550 | 250 250 185 1550 Overloaded Moves . | . . . . Propulsion Burnouts . | . . . . Robots Hopped . | . . . . Potential Cave-ins . | . . . . Cave-ins Triggered . | . . . . Exploration Rate (%) 49 | 6 80 87 25 Regions Visited 3 Branch Regions . Pre-discovered Areas . | . . . . Known Exits Taken 1 | . . 1 . Unknown Exits Taken 2 | 1 1 . . Scrap Searched . | . . . . Spaces Dug . | . . . . Terrain Destroyed 72 | . . . 72 Melee . | . . . . Projectile . | . . . . AOE 72 | . . . 72 Terrain Rammed . | . . . . Walls Destroyed . | . . . . Machines Disabled . | . . . . Actions | -11 -10 -9 -8 --------- Run | Yrd Mat Mat Mat Total 3325 | 221 961 1792 351 Wait 236 | . 19 217 . Move 2640 | 170 806 1370 294 Hop . | . . . . Pick Up 67 | 17 15 28 7 Fast Attach 5 | . 1 4 . Attach 32 | 9 5 11 7 Detach 3 | 2 . 1 . Swap 29 | 1 7 15 6 Drop 33 | 2 12 19 . Fire 280 | 20 96 127 37 Melee . | . . . . Ram . | . . . . Kick . | . . . . Crush . | . . . . Escape Stasis . | . . . . Rewire . | . . . . Trap . | . . . . Miscellaneous . | . . . . Route ------- -11/Scrapyard -10/Materials (discovered 3 exits: *Mat x2 / [*Min]) -9/Materials (discovered 3 exits: *Mat x2 / *Min) -8/Materials (discovered 1 exit: *Fac) History --------- Turn | Location | Event 3 | -11/Scrapyard | Discovered new exit (range 16) 295 | -11/Scrapyard | Entered Materials 315 | -10/Materials | Build established: Mutant 517 | -10/Materials | Discovered new exit (range 5) 715 | -10/Materials | Build established: Scavenger-Mutant 740 | -10/Materials | Discovered new exit (range 9) 876 | -10/Materials | Core integrity fell below 50% 905 | -10/Materials | Core integrity fell below 20% 912 | -10/Materials | Lost 4 parts (2n1u1w) 1264 | -10/Materials | Discovered new exit (range 15) 1280 | -10/Materials | Entered another Materials area 1280 | -9/Materials | Evolved 2 slots: Utility x2 1611 | -9/Materials | Discovered new exit (range 6) 1617 | -9/Materials | Identified exit to Mines 1687 | -9/Materials | Repaired Shotgun 1719 | -9/Materials | Repaired Shotgun 1755 | -9/Materials | Repaired Shotgun 1865 | -9/Materials | Discovered new exit (range 13) 1922 | -9/Materials | Identified exit to Materials 2411 | -9/Materials | Repaired Shotgun 2489 | -9/Materials | Build established: Mutant 2533 | -9/Materials | Discovered exit to Materials (range 14) 2813 | -9/Materials | Core integrity fell below 50% 2961 | -9/Materials | Central database locked down 3071 | -9/Materials | Core integrity fell below 20% 3432 | -9/Materials | Entered another Materials area 3432 | -8/Materials | Evolved 2 slots: Propulsion x2 3450 | -8/Materials | Identified exit to Garrison 3829 | -8/Materials | Discovered new exit (range 15) 3862 | -8/Materials | Identified exit to Factory 3945 | -8/Materials | Core integrity fell below 50% 3953 | -8/Materials | Core integrity fell below 20% 3956 | -8/Materials | Destroyed by L-31 Rogue with Katana Last Messages --------------- R-06 Scavenger collects Lgt. Treads. R-06 Scavenger collects Beam Rifle. EXIT=FOUND R-06 Scavenger collects Lgt. Treads. R-06 Scavenger collects Heat Sink. EXIT=IDENTIFIED: FACTORY A-02 Transporter destroyed. Acquired 50 matter. Acquired Shield Generator. [Achievement: Let's See Who's Tougher] Com. Wheel destroyed. Destroyed Com. Wheel. Grenade Launcher+ destroyed. Wheel destroyed. Shield Generator destroyed. Imp. Assault Rifle destroyed. Shotgun+ destroyed. Mic. Nuclear Core destroyed. Core Shielding destroyed. Critical hit (Burn: +37). Map ----- +----------------------------------------------------+ | ?????????????????????????????????????????????????? | | ?????????????????????????????????????????????????? | | ?????????????????????????????????????????????????? | | ?????????????????????????????????????????????????? | | ?????????????????????????????????????????????????? | | ?????????????????????????????????????????????????? | | ?????????????????????????????????????????????????? | | ?????????????????????????????????????????????????? | | ?????????????????????????????????????????????????? | | ?????????????????????????????????????????????????? | | ?????????????????????????????????????????????????? | | ?????????????????????????????????????????????????? | | ?????????????????????????????????????????????????? | | ????????????????????????????????????#####????????? | | ????????????????????????????????????# #????????? | | ????????????????????????????????????# < #????????? | | ????????????????????????????????????# #????????? | | ????????????????????????????????????# #????????? | | ????????????????????????????????????# #????????? | | ?????????????????###########????????# #????????? | | ?????????????????# [| #????????# #????????? | | ?????????????#???# [| #????????# #????????? | | ?????????????# ??# ?????????# #????????? | | ????????????## ?# ??????????# #????????? | | ????????????# ## ############ #????????? | | ????????????# l@ #????????? | | ????????????# g g ! #????????? | | ????????????# ### ############ #????????? | | ????????????####?# #?????????# #????????? | | ?????????????????# """"" #?????????# #????????? | | ?????????????????# """"" #?????????# #????????? | | ?????????????????# """"" #?????????+ ###+####?? | | ?????????????????# #?????????# #?? | | ?????????????????# % #?????????# #?? | | ?????????????????##########?????????# """ ]#?? | | ????????????????????????????????????# """ #?? | | ????????????????????????????????????# """ #?? | | ????????????????????????????????????# %! #?? | | ????????????????????????????????????# ! ### | | ????????????????????????????????????# | | ????????????????????????????????????# | | ?????????????????????????????# #### | | ?????????????????????????? ###+##??# | | ?????????????????????????? ???? ????# | | ?????????????????????????? ? ????? ????# | | ????????????????????????????## ???????????+ | | ??????????????????????????????#????????????# | | ???????????????????????????????????????????# | | ???????????????????????????????????????????# | | ???????????????????????????????????????????# ! | +----------------------------------------------------+ Best States ------------- Heat Dissipation 31 Energy Generation 15 Energy Capacity 280 Matter Stores 300 Matter Capacity 300 Sight Range 16 Terrain Scan Density 10 Core Shielding 20 Evasion (%) 50 Offensive Hacking 10 Item Schematics ----------------- Seismic Detector | -9/Materials | Scanalyzed Robot Schematics ------------------ None Fabricated ------------ Nothing Repaired ---------- Shotgun | 58% | -9/Materials Shotgun | 47% | -9/Materials Shotgun | 4% | -9/Materials Studied --------- Shotgun | -9/Materials | Hacked Ion Engine | -9/Materials | Hacked Arm. Wheel | -9/Materials | Hacked Grenade Launcher | -9/Materials | Hacked Alien Tech Used ----------------- None Achievements -------------- Close Call Let's See Who's Tougher Throw Away The Key Challenges ------------ None Game ------ Seed CoordinationPointBiocell Manual? 0 Play Time 00:52:54 Cumulative 13.9 hours Start 2025.12.04 @ 00:01:05 End 2025.12.04 @ 17:55:35 Sessions 2 Manual Loads 0 Difficulty Rogue Special Mode None Game No. 29 Rogue 29 Adventurer 0 Explorer 0 Win Type - Total 0 Types 0/0/0/0/0/0/0/0/0/0 Lore% 12 Gallery% 13 Achievement% 14 Wizard Run 0 Options --------- Layout 1 ASCII 0 Keyboard 0 Movement Mouse Keybinds 0 Fullscreen 1 Font 24/Smallcaps Map View 50x35 Zoom Use 0% Tactical HUD 0 Map Filters NONE Filters NONE Steam 1 RUN: 955c4342-1143-4f15-83a3-222888425a2e